fUST/lending_fUST_20250302
["ID","MTS","AMOUNT","RATE_DAILY","PERIOD"]
[355082678,1740887480551,-500.0,0.00025707,2]
[355082680,1740887480561,-500.0,0.00025707,2]
[355082681,1740887480571,-500.0,0.00025707,2]
[355082683,1740887480582,-500.0,0.00025707,2]
[355082685,1740887480592,-500.0,0.00025707,2]
[355082687,1740887480608,-500.0,0.00025707,2]
[355082688,1740887480618,-500.0,0.00025707,2]
[355082690,1740887480628,-500.0,0.00025707,2]
[355082691,1740887480638,-500.0,0.00025707,2]
[355082693,1740887480649,-500.0,0.00025707,2]
[355082695,1740887480659,-511.51,0.00025707,2]
[355082696,1740887480670,-500.0,0.00025707,2]
[355082698,1740887480682,-500.0,0.00025707,2]
[355082699,1740887480692,-545.25,0.00025707,2]
[355082701,1740887480702,-984.68,0.00025707,2]
[355082702,1740887480712,-500.0,0.00025707,2]
[355082704,1740887480722,-500.0,0.00025707,2]
[355082705,1740887480732,-500.0,0.00025707,2]
[355082707,1740887480742,-500.0,0.00025707,2]
[355082709,1740887480752,-500.0,0.00025707,2]
[355082710,1740887480763,-532.97,0.00025707,2]
[355082712,1740887480775,-500.0,0.00025707,2]
[355082713,1740887480784,-500.0,0.00025707,2]
[355082715,1740887480794,-500.0,0.00025707,2]
[355082717,1740887480804,-500.0,0.00025707,2]
[355082718,1740887480813,-500.0,0.00025707,2]
[355082720,1740887480823,-787.96,0.00025707,2]
[355082721,1740887480834,-500.0,0.00025707,2]
[355082723,1740887480844,-500.0,0.00025707,2]
[355082724,1740887480854,-500.0,0.00025707,2]
[355082726,1740887480865,-879.86,0.00025707,2]
[355082728,1740887480875,-511.59,0.00025707,2]
[355082729,1740887480886,-500.0,0.00025707,2]
[355082731,1740887480896,-1331.9,0.00025707,2]
[355082733,1740887480906,-500.0,0.00025707,2]
[355082734,1740887480916,-164.330266,0.00025707,7]
[355082736,1740887480928,-164.330266,0.00025707,7]
[355082737,1740887480937,-500.0,0.00025707,2]
[355082739,1740887480948,-151.0,0.00025707,7]
[355082740,1740887480958,-500.0,0.00025707,2]
[355082742,1740887480968,-500.0,0.00025707,2]
[355082744,1740887480978,-500.0,0.00025707,2]
[355082745,1740887480989,-500.0,0.00025707,2]
[355082747,1740887480999,-2389.55,0.00025707,2]
[355082748,1740887481009,-1197.27,0.00025707,2]
[355082750,1740887481020,-500.0,0.00025707,2]
[355082752,1740887481031,-1199.41,0.00025707,2]
[355082753,1740887481043,-800.95,0.00025708,2]
[355082755,1740887481053,-500.0,0.00025708,2]
[355082757,1740887481063,-595.63,0.00025708,2]
[355082758,1740887481072,-511.28924264,0.00025708,2]
[355082760,1740887481083,-500.0,0.00025708,2]
[355082761,1740887481093,-619.14,0.00025708,2]
[355082763,1740887481104,-500.0,0.00025708,2]
[355082764,1740887481114,-696.73,0.00025708,2]
[355082766,1740887481124,-500.0,0.00025708,2]
[355082768,1740887481134,-500.0,0.00025708,2]
[355082770,1740887481144,-500.0,0.00025708,2]
[355082771,1740887481154,-827.74,0.00025708,2]
[355082772,1740887481165,-556.71,0.00025708,2]
[355082773,1740887481174,-645.31,0.00025708,2]
[355082774,1740887481185,-500.0,0.00025708,2]
[355082775,1740887481195,-500.0,0.00025708,2]
[355082776,1740887481205,-500.0,0.00025708,2]
[355082777,1740887481216,-537.54762148,0.00025708,2]
[355082778,1740887481226,-500.0,0.00025708,2]
[355082779,1740887481236,-546.83,0.00025708,2]
[355082780,1740887481246,-500.0,0.00025708,2]
[355082781,1740887481258,-500.0,0.00025708,2]
[355082782,1740887481268,-1197.2,0.00025708,2]
[355082783,1740887481278,-824.78,0.00025708,2]
[355082784,1740887481288,-510.26,0.00025708,2]
[355082785,1740887481298,-500.0,0.00025708,2]
[355082786,1740887481308,-671.0,0.00025708,2]
[355082787,1740887481318,-500.0,0.00025708,2]
[355082788,1740887481328,-1080.75,0.00025708,2]
[355082789,1740887481339,-500.0,0.00025708,2]
[355082790,1740887481349,-500.0,0.00025708,2]
[355082792,1740887481359,-500.0,0.00025708,2]
[355082793,1740887481369,-500.0,0.00025708,2]
[355082794,1740887481379,-998.88,0.00025708,2]
[355082796,1740887481390,-500.0,0.00025708,2]
[355082798,1740887481401,-500.0,0.00025708,2]
[355082800,1740887481412,-500.0,0.00025708,2]
[355082802,1740887481421,-500.0,0.00025708,2]
[355082804,1740887481433,-1216.98,0.00025708,2]
[355082807,1740887481443,-658.58,0.00025708,2]
[355082808,1740887481453,-1583.32,0.00025708,2]
[355082811,1740887481463,-151.0,0.00025708,7]
[355082813,1740887481473,-500.0,0.00025708,2]
[355082815,1740887481483,-151.0,0.00025708,7]
[355082817,1740887481493,-151.0,0.00025708,7]
[355082819,1740887481503,-151.0,0.00025708,7]
[355082821,1740887481513,-151.0,0.00025708,7]
[355082823,1740887481523,-500.0,0.00025708,2]
[355082825,1740887481533,-500.0,0.00025708,2]
[355082827,1740887481543,-633.86,0.00025708,2]
[355082829,1740887481553,-500.0,0.00025708,2]
[355082831,1740887481563,-500.0,0.00025708,2]
[355082833,1740887481573,-151.0,0.00025708,7]
[355082835,1740887481583,-151.0,0.00025708,7]
[355082837,1740887481594,-500.0,0.00025708,2]
[355082839,1740887481608,-500.0,0.00025708,2]
[355082841,1740887481618,-504.50096231,0.00025708,2]
[355082843,1740887481628,-500.0,0.00025708,2]
[355082846,1740887481639,-500.0,0.00025708,2]
[355082848,1740887481650,-500.0,0.00025708,2]
[355082850,1740887481660,-500.0,0.00025708,2]
[355082852,1740887481671,-500.0,0.00025708,2]
[355082854,1740887481687,-500.0,0.00025708,2]
[355082856,1740887481697,-310.48910382,0.00025708,2]
[355082858,1740887481708,-903.21,0.00025708,2]
[355082860,1740887481718,-500.0,0.00025708,2]
[355082862,1740887481728,-500.0,0.0002572,2]
[355082864,1740887481739,-496.65961214,0.0002572,2]
[355082866,1740887481749,-151.0,0.0002572,7]
[355082868,1740887481760,-151.0,0.0002572,7]
[355082871,1740887481771,-151.0,0.0002572,7]
[355082873,1740887481782,-151.0,0.0002572,7]
[355082875,1740887481792,-151.0,0.0002572,7]
[355082877,1740887481802,-151.0,0.0002572,7]
[355082879,1740887481813,-500.0,0.00025721,2]
[355082881,1740887481823,-500.0,0.00025721,2]
[355082883,1740887481834,-166.261306,0.00025721,7]
[355082885,1740887481846,-166.261306,0.00025721,7]
[355082887,1740887481858,-151.0,0.00025721,7]
[355082890,1740887481869,-205.69271906,0.00025767,4]
[355082892,1740887481879,-1129.25953888,0.00025769,2]
[355082894,1740887481890,-150.0,0.00025842,2]
[355082896,1740887481900,-298.0,0.00025842,2]
[355082898,1740887481910,-397.0,0.00025842,2]
[355082900,1740887481920,-576.55,0.00025883,2]
[355082902,1740887481932,-695.94,0.00025885,2]
[355082904,1740887481942,-500.0,0.00025885,2]
[355082906,1740887481952,-638.24,0.00025885,2]
[355082908,1740887481963,-500.0,0.00025885,2]
[355082910,1740887481973,-500.0,0.00025885,2]
[355082913,1740887481984,-512.29,0.00025885,2]
[355082915,1740887481994,-500.0,0.00025885,2]
[355082917,1740887482004,-500.0,0.00025885,2]
[355082919,1740887482014,-500.0,0.00025885,2]
[355082921,1740887482024,-520.77263,0.00025885,2]
[355082923,1740887482035,-500.0,0.00025885,2]
[355082925,1740887482045,-500.0,0.00025885,2]
[355082927,1740887482055,-517.75,0.00025885,2]
[355082929,1740887482066,-500.0,0.00025885,2]
[355082931,1740887482078,-500.0,0.00025885,2]
[355082933,1740887482089,-500.0,0.00025885,2]
[355082935,1740887482098,-500.0,0.00025885,2]
[355082937,1740887482108,-500.0,0.00025885,2]
[355082939,1740887482120,-555.95,0.00025885,2]
[355082942,1740887482131,-500.0,0.00025885,2]
[355082944,1740887482145,-500.0,0.00025885,2]
[355082946,1740887482162,-604.17,0.00025885,2]
[355082948,1740887482172,-316.15413138,0.00025885,2]
[355082950,1740887482183,-393.35718296,0.00025885,2]
[355082972,1740887482377,-500.0,0.00025885,2]
[355082974,1740887482388,-500.0,0.00025885,2]
[355082976,1740887482397,-535.38,0.00025885,2]
[355082978,1740887482407,-644.85,0.00025885,2]
[355082980,1740887482417,-500.0,0.00025885,2]
[355082982,1740887482428,-1109.68,0.00025885,2]
[355082984,1740887482437,-500.0,0.00025885,2]
[355082986,1740887482447,-500.0,0.00025885,2]
[355082988,1740887482456,-500.0,0.00025887,2]
[355082990,1740887482466,-500.0,0.00025887,2]
[355082992,1740887482477,-3938.98,0.00025887,2]
[355082994,1740887482487,-1897.21,0.00025887,2]
[355082996,1740887482496,-500.0,0.00025887,2]
[355082998,1740887482506,-814.94,0.00025887,2]
[355083000,1740887482515,-500.0,0.00025887,2]
[355083002,1740887482525,-582.56,0.00025887,2]
[355083004,1740887482534,-500.0,0.00025888,2]
[355083006,1740887482543,-500.0,0.00025888,2]
[355083008,1740887482552,-606.5,0.00025888,2]
[355083010,1740887482562,-1398.67,0.00025888,2]
[355083012,1740887482572,-151.0,0.00025888,7]
[355083014,1740887482581,-610.78,0.00025888,2]
[355083016,1740887482592,-337.005517,0.00025888,7]
[355083018,1740887482605,-337.005517,0.00025888,7]
[355083020,1740887482615,-500.0,0.00025888,2]
[355083022,1740887482624,-500.0,0.00025888,2]
[355083024,1740887482633,-151.0,0.00025888,7]
[355083026,1740887482644,-151.0,0.00025888,7]
[355083028,1740887482653,-151.0,0.00025888,7]
[355083030,1740887482664,-151.0,0.00025888,7]
[355083032,1740887482674,-511.31500511,0.00025888,2]
[355083034,1740887482686,-500.0,0.00025888,2]
[355083036,1740887482696,-500.0,0.00025888,2]
[355083038,1740887482705,-722.78,0.00025888,2]
[355083040,1740887482715,-500.0,0.00025888,2]
[355083042,1740887482724,-500.0,0.00025888,2]
[355083044,1740887482734,-1444.05,0.00025888,2]
[355083046,1740887482745,-500.0,0.00025888,2]
[355083048,1740887482755,-500.0,0.00025888,2]
[355083051,1740887482765,-500.0,0.00025888,2]
[355083053,1740887482774,-1058.22,0.00025888,2]
[355083055,1740887482785,-561.36740519,0.00025888,2]
[355083057,1740887482794,-1004.44,0.00025888,2]
[355083059,1740887482804,-500.0,0.00025888,2]
[355083061,1740887482815,-500.0,0.00025888,2]
[355083063,1740887482824,-699.97,0.00025888,2]
[355083065,1740887482834,-2209.6,0.00025888,2]
[355083067,1740887482844,-500.0,0.00025888,2]
[355083069,1740887482854,-500.0,0.00025888,2]
[355083071,1740887482864,-6855.05,0.00025888,2]
[355083073,1740887482873,-500.0,0.00025888,2]
[355083075,1740887482882,-933.72,0.00025888,2]
[355083077,1740887482892,-500.0,0.00025888,2]
[355083079,1740887482902,-612.38,0.00025888,2]
[355083081,1740887482912,-785.13,0.00025888,2]
[355083083,1740887482923,-829.6,0.00025888,2]
[355083085,1740887482934,-966.52,0.00025888,2]
[355083087,1740887482943,-895.37,0.00025888,2]
[355083089,1740887482953,-500.0,0.00025888,2]
[355083091,1740887482963,-500.0,0.00025888,2]
[355083093,1740887482972,-6949.16,0.00025888,2]
[355083095,1740887482982,-500.0,0.00025888,2]
[355083097,1740887482992,-500.0,0.00025888,2]
[355083099,1740887483002,-500.0,0.00025888,2]
[355083101,1740887483012,-863.82,0.00025888,2]
[355083103,1740887483022,-4270.14,0.00025888,2]
[355083105,1740887483032,-1135.48,0.00025888,2]
[355083107,1740887483041,-637.67,0.00025888,2]
[355083110,1740887483051,-500.0,0.00025888,2]
[355083112,1740887483060,-5348.24,0.00025888,2]
[355083114,1740887483070,-3293.1,0.00025888,2]
[355083116,1740887483080,-4549.77,0.00025888,2]
[355083118,1740887483090,-769.42,0.00025888,2]
[355083120,1740887483100,-500.0,0.00025888,2]
[355083122,1740887483109,-2567.41,0.00025888,2]
[355083124,1740887483120,-1086.26,0.00025888,2]
[355083126,1740887483129,-500.0,0.00025888,2]
[355083128,1740887483139,-500.0,0.00025888,2]
[355083130,1740887483149,-604.84,0.00025888,2]
[355083132,1740887483158,-7043.4,0.00025888,2]
[355083134,1740887483168,-786.15,0.00025888,2]
[355083136,1740887483178,-500.0,0.00025888,2]
[355083138,1740887483187,-500.0,0.00025888,2]
[355083140,1740887483197,-500.0,0.00025888,2]
[355083141,1740887483207,-500.0,0.00025888,2]
[355083144,1740887483216,-1576.77,0.00025888,2]
[355083146,1740887483227,-500.0,0.00025888,2]
[355083148,1740887483236,-2514.1,0.00025888,2]
[355083150,1740887483246,-2961.51,0.00025888,2]
[355083152,1740887483256,-5947.3,0.00025888,2]
[355083154,1740887483265,-500.0,0.00025888,2]
[355083156,1740887483275,-1198.18,0.00025888,2]
[355083158,1740887483284,-1870.92,0.00025888,2]
[355083160,1740887483294,-1004.96,0.00025888,2]
[355083162,1740887483304,-752.9,0.00025888,2]
[355083164,1740887483314,-500.0,0.00025888,2]
[355083166,1740887483324,-500.0,0.00025888,2]
[355083168,1740887483333,-151.0,0.00025889,7]
[355083170,1740887483343,-151.0,0.00025889,7]
[355083172,1740887483353,-90588.84,0.00025889,2]
[355083174,1740887483362,-1608.93,0.00025889,2]
[355083176,1740887483372,-917.51,0.00025889,2]
[355083178,1740887483382,-7853.56,0.00025889,2]
[355083180,1740887483391,-2071.45,0.00025889,2]
[355083182,1740887483401,-500.0,0.00025889,2]
[355083184,1740887483411,-500.0,0.00025889,2]
[355083185,1740887483420,-2786.42,0.00025889,2]
[355083188,1740887483431,-584.33,0.00025889,2]
[355083190,1740887483440,-25446.5,0.00025889,2]
[355083192,1740887483450,-726.66,0.00025889,2]
[355083194,1740887483460,-200.0,0.0002591,17]
[355083196,1740887483469,-500.0,0.00025981,2]
[355083198,1740887483478,-500.0,0.00025981,2]
[355083200,1740887483488,-500.0,0.00025981,2]
[355083201,1740887483497,-500.0,0.00025981,2]
[355083203,1740887483507,-500.0,0.00025981,2]
[355083206,1740887483517,-500.0,0.00025981,2]
[355083207,1740887483526,-500.0,0.00025981,2]
[355083209,1740887483536,-700.75,0.00025981,2]
[355083211,1740887483545,-634.19705061,0.00025981,2]
[355083213,1740887483555,-500.0,0.00025981,2]
[355083216,1740887483565,-500.0,0.00025981,2]
[355083217,1740887483575,-509.21,0.00025981,2]
[355083219,1740887483585,-642.05390278,0.00025981,2]
[355083222,1740887483595,-500.0,0.00025981,2]
[355083224,1740887483610,-500.0,0.00025981,2]
[355083226,1740887483620,-500.0,0.00025981,2]
[355083228,1740887483629,-500.0,0.00025981,2]
[355083230,1740887483640,-500.0,0.00025981,2]
[355083232,1740887483649,-500.0,0.00025981,2]
[355083234,1740887483659,-500.0,0.00025981,2]
[355083236,1740887483669,-500.0,0.00025981,2]
[355083238,1740887483682,-511.51,0.00025981,2]
[355083240,1740887483692,-500.0,0.00025981,2]
[355083242,1740887483702,-455.25457559,0.00025981,2]
[355083244,1740887483711,-545.25,0.00025981,2]
[355083246,1740887483721,-984.68,0.00025981,2]
[355083248,1740887483730,-500.0,0.00025981,2]
[355083250,1740887483740,-500.0,0.00025981,2]
[355083252,1740887483750,-500.0,0.00025981,2]
[355083254,1740887483760,-500.0,0.00025981,2]
[355083256,1740887483770,-500.0,0.00025981,2]
[355083258,1740887483780,-532.97,0.00025981,2]
[355083260,1740887483790,-500.0,0.00025981,2]
[355083262,1740887483799,-500.0,0.00025981,2]
[355083263,1740887483808,-183.98382345,0.00025981,2]
[355083264,1740887483818,-500.0,0.00025981,2]
[355083265,1740887483827,-500.0,0.00025981,2]
[355083266,1740887483837,-787.96,0.00025981,2]
[355083267,1740887483847,-500.0,0.00025981,2]
[355083268,1740887483857,-500.0,0.00025981,2]
[355083269,1740887483866,-879.86,0.00025981,2]
[355083270,1740887483876,-511.59,0.00025981,2]
[355083271,1740887483885,-500.0,0.00025981,2]
[355083272,1740887483895,-1331.9,0.00025981,2]
[355083273,1740887483904,-500.0,0.00025981,2]
[355083274,1740887483914,-500.0,0.00025981,2]
[355083275,1740887483923,-500.0,0.00025981,2]
[355083276,1740887483933,-500.0,0.00025981,2]
[355083277,1740887483943,-500.0,0.00025981,2]
[355083279,1740887483953,-500.0,0.00025981,2]
[355083281,1740887483963,-2389.55,0.00025981,2]
[355083283,1740887483972,-1197.27,0.00025981,2]
[355083285,1740887483982,-500.0,0.00025981,2]
[355083287,1740887483992,-1199.41,0.00025981,2]
[355083289,1740887484001,-800.95,0.00025982,2]
[355083291,1740887484011,-500.0,0.00025982,2]
[355083293,1740887484020,-595.63,0.00025982,2]
[355083295,1740887484031,-151.0,0.00025982,7]
[355083297,1740887484040,-619.14,0.00025982,2]
[355083299,1740887484050,-696.73,0.00025982,2]
[355083301,1740887484060,-500.0,0.00025982,2]
[355083303,1740887484069,-500.0,0.00025982,2]
[355083305,1740887484079,-500.0,0.00025982,2]
[355083307,1740887484089,-827.74,0.00025982,2]
[355083309,1740887484098,-556.71,0.00025982,2]
[355083311,1740887484108,-645.31,0.00025982,2]
[355083313,1740887484117,-500.0,0.00025982,2]
[355083315,1740887484127,-500.0,0.00025982,2]
[355083317,1740887484136,-500.0,0.00025982,2]
[355083319,1740887484145,-500.0,0.00025982,2]
[355083321,1740887484155,-546.83,0.00025982,2]
[355083323,1740887484165,-500.0,0.00025982,2]
[355083325,1740887484175,-500.0,0.00025982,2]
[355083327,1740887484186,-1197.2,0.00025982,2]
[355083329,1740887484195,-824.78,0.00025982,2]
[355083331,1740887484205,-510.26,0.00025982,2]
[355083333,1740887484215,-607.25353828,0.00025982,2]
[355083335,1740887484225,-671.0,0.00025982,2]
[355083337,1740887484234,-500.0,0.00025982,2]
[355083339,1740887484243,-1080.75,0.00025982,2]
[355083342,1740887484253,-500.0,0.00025982,2]
[355083344,1740887484264,-192.79689944,0.00025982,2]
[355083346,1740887484273,-500.0,0.00025982,2]
[355083348,1740887484283,-500.0,0.00025982,2]
[355083350,1740887484292,-998.88,0.00025982,2]
[355083352,1740887484302,-500.0,0.00025982,2]
[355083354,1740887484312,-500.0,0.00025982,2]
[355083355,1740887484321,-500.0,0.00025982,2]
[355083357,1740887484330,-500.0,0.00025982,2]
[355083359,1740887484340,-1216.98,0.00025982,2]
[355083362,1740887484350,-658.58,0.00025982,2]
[355083364,1740887484360,-1583.32,0.00025982,2]
[355083366,1740887484370,-500.0,0.00025982,2]
[355083368,1740887484379,-500.0,0.00025982,2]
[355083370,1740887484389,-633.86,0.00025982,2]
[355083372,1740887484399,-500.0,0.00025982,2]
[355083374,1740887484409,-500.0,0.00025982,2]
[355083376,1740887484418,-500.0,0.00025982,2]
[355083377,1740887484429,-500.0,0.00025982,2]
[355083380,1740887484439,-500.0,0.00025982,2]
[355083381,1740887484448,-500.0,0.00025982,2]
[355083383,1740887484458,-500.0,0.00025982,2]
[355083386,1740887484467,-500.0,0.00025982,2]
[355083387,1740887484476,-519.22511747,0.00025982,2]
[355083390,1740887484487,-500.0,0.00025982,2]
[355083392,1740887484497,-903.21,0.00025982,2]
[355083394,1740887484506,-500.0,0.00025982,2]
[355083396,1740887484516,-500.0,0.00025995,2]
[355083398,1740887484525,-500.0,0.00025995,2]
[355083400,1740887484536,-150.0,0.00026,30]
[355083402,1740887484546,-2208.94,0.00026,2]
[355083404,1740887484555,-500.0,0.00026,10]
[355083406,1740887484565,-500.0,0.00026,10]
[355083408,1740887484574,-500.0,0.00026,10]
[355083410,1740887484583,-500.0,0.00026,10]
[355083412,1740887484594,-500.0,0.00026,10]
[355083414,1740887484610,-994.46817588,0.00026,10]
[355083416,1740887484621,-1229.670615,0.000261,5]
[355083418,1740887484631,-576.55,0.00026157,2]
[355083420,1740887484642,-695.94,0.00026159,2]
[355083422,1740887484651,-500.0,0.00026159,2]
[355083424,1740887484661,-638.24,0.00026159,2]
[355083426,1740887484671,-500.94,0.00026159,2]
[355083428,1740887484685,-500.0,0.00026159,2]
[355083430,1740887484693,-512.29,0.00026159,2]
[355083432,1740887484703,-500.0,0.00026159,2]
[355083434,1740887484712,-500.0,0.00026159,2]
[355083436,1740887484722,-623.06386993,0.00026159,2]
[355083438,1740887484731,-500.0,0.00026159,2]
[355083440,1740887484740,-500.0,0.00026159,2]
[355083442,1740887484750,-517.75,0.00026159,2]
[355083444,1740887484760,-500.0,0.00026159,2]
[355083446,1740887484769,-500.0,0.00026159,2]
[355083448,1740887484779,-500.0,0.00026159,2]
[355083450,1740887484789,-500.0,0.00026159,2]
[355083452,1740887484799,-614.54244473,0.00026159,2]
[355083454,1740887484808,-555.95,0.00026159,2]
[355083456,1740887484817,-500.0,0.00026159,2]
[355083458,1740887484826,-500.0,0.00026159,2]
[355083460,1740887484836,-604.17,0.00026159,2]
[355083462,1740887484846,-500.0,0.00026159,2]
[355083464,1740887484856,-500.0,0.00026159,2]
[355083466,1740887484865,-535.38,0.00026159,2]
[355083468,1740887484874,-644.85,0.00026159,2]
[355083470,1740887484883,-500.0,0.00026159,2]
[355083472,1740887484893,-1109.68,0.00026159,2]
[355083474,1740887484903,-500.0,0.00026159,2]
[355083476,1740887484912,-500.0,0.00026161,2]
[355083478,1740887484922,-500.0,0.00026161,2]
[355083480,1740887484933,-3938.98,0.00026161,2]
[355083482,1740887484943,-1897.21,0.00026161,2]
[355083484,1740887484953,-500.0,0.00026161,2]
[355083486,1740887484962,-814.94,0.00026161,2]
[355083489,1740887484972,-500.0,0.00026161,2]
[355083491,1740887484982,-582.56,0.00026161,2]
[355083492,1740887484991,-500.0,0.00026162,2]
[355083494,1740887485000,-500.0,0.00026162,2]
[355083496,1740887485010,-606.5,0.00026162,2]
[355083498,1740887485019,-1398.67,0.00026162,2]
[355083500,1740887485029,-610.78,0.00026162,2]
[355083502,1740887485039,-500.0,0.00026162,2]
[355083504,1740887485050,-500.0,0.00026162,2]
[355083506,1740887485060,-500.0,0.00026162,2]
[355083508,1740887485070,-500.0,0.00026162,2]
[355083510,1740887485079,-722.78,0.00026162,2]
[355083512,1740887485088,-500.0,0.00026162,2]
[355083513,1740887485098,-500.0,0.00026162,2]
[355083515,1740887485107,-1444.05,0.00026162,2]
[355083517,1740887485118,-381.14023143,0.00026162,2]
[355083519,1740887485128,-500.0,0.00026162,2]
[355083521,1740887485138,-500.0,0.00026162,2]
[355083523,1740887485148,-1058.22,0.00026162,2]
[355083525,1740887485158,-1004.44,0.00026162,2]
[355083527,1740887485167,-195.46645366,0.00026162,2]
[355083529,1740887485178,-500.0,0.00026162,2]
[355083531,1740887485190,-699.97,0.00026162,2]
[355083533,1740887485199,-2209.6,0.00026162,2]
[355083535,1740887485210,-500.0,0.00026162,2]
[355083537,1740887485219,-500.0,0.00026162,2]
[355083539,1740887485229,-6855.05,0.00026162,2]
[355083541,1740887485238,-500.0,0.00026162,2]
[355083543,1740887485247,-933.72,0.00026162,2]
[355083545,1740887485257,-500.0,0.00026162,2]
[355083547,1740887485266,-612.38,0.00026162,2]
[355083549,1740887485276,-785.13,0.00026162,2]
[355083551,1740887485285,-829.6,0.00026162,2]
[355083553,1740887485295,-966.52,0.00026162,2]
[355083555,1740887485305,-895.37,0.00026162,2]
[355083557,1740887485314,-500.0,0.00026162,2]
[355083558,1740887485324,-500.0,0.00026162,2]
[355083560,1740887485334,-6949.16,0.00026162,2]
[355083562,1740887485344,-500.0,0.00026162,2]
[355083564,1740887485353,-500.0,0.00026162,2]
[355083566,1740887485363,-500.0,0.00026162,2]
[355083568,1740887485372,-863.82,0.00026162,2]
[355083570,1740887485382,-4270.14,0.00026162,2]
[355083572,1740887485391,-1135.48,0.00026162,2]
[355083574,1740887485401,-637.67,0.00026162,2]
[355083576,1740887485411,-500.0,0.00026162,2]
[355083578,1740887485421,-5348.24,0.00026162,2]
[355083580,1740887485431,-3293.1,0.00026162,2]
[355083582,1740887485440,-4549.77,0.00026162,2]
[355083584,1740887485453,-769.42,0.00026162,2]
[355083586,1740887485463,-500.0,0.00026162,2]
[355083588,1740887485473,-2567.41,0.00026162,2]
[355083590,1740887485482,-1086.26,0.00026162,2]
[355083592,1740887485493,-507.92689481,0.00026162,2]
[355083594,1740887485502,-500.0,0.00026162,2]
[355083596,1740887485512,-604.84,0.00026162,2]
[355083598,1740887485521,-7043.4,0.00026162,2]
[355083600,1740887485532,-786.15,0.00026162,2]
[355083601,1740887485542,-500.0,0.00026162,2]
[355083603,1740887485552,-500.0,0.00026162,2]
[355083605,1740887485561,-500.0,0.00026162,2]
[355083607,1740887485571,-500.0,0.00026162,2]
[355083609,1740887485580,-1576.77,0.00026162,2]
[355083611,1740887485590,-500.0,0.00026162,2]
[355083613,1740887485604,-2514.1,0.00026162,2]
[355083615,1740887485614,-2961.51,0.00026162,2]
[355083617,1740887485623,-5947.3,0.00026162,2]
[355083635,1740887485794,-500.0,0.00026162,2]
[355083638,1740887485821,-1198.18,0.00026162,2]
[355083640,1740887485830,-1870.92,0.00026162,2]
[355083642,1740887485839,-1004.96,0.00026162,2]
[355083644,1740887485849,-752.9,0.00026162,2]
[355083646,1740887485859,-500.0,0.00026162,2]
[355083648,1740887485869,-500.0,0.00026162,2]
[355083650,1740887485878,-90588.84,0.00026163,2]
[355083652,1740887485888,-1608.93,0.00026163,2]
[355083654,1740887485897,-917.51,0.00026163,2]
[355083656,1740887485907,-7853.56,0.00026163,2]
[355083657,1740887485916,-2071.45,0.00026163,2]
[355083659,1740887485925,-500.0,0.00026163,2]